bitfinex/quotes_SOLUSD_20250307
["timestamp","ask_amount","ask_price","bid_price","bid_amount"]
[1741351950149,35.94141077,142.38,142.35,0.033]
[1741351950633,35.94141077,142.4,142.35,0.17516157]
[1741351950838,35.94141077,142.41,142.35,0.17516157]
[1741351951046,35.94141077,142.4,142.35,0.17516157]
[1741351951349,35.90770978,142.4,142.35,0.17516157]
[1741351952332,35.94141077,142.39,142.35,0.17516157]
[1741351952550,35.94141077,142.37,142.35,0.17516157]
[1741351952728,35.94141077,142.37,142.35,0.033]
[1741351953047,35.94141077,142.36,142.35,312.033]
[1741351953551,35.94141077,142.36,142.35,312.17516157]
[1741351954145,35.94141077,142.37,142.35,312.033]
[1741351954655,35.94141077,142.37,142.36,0.14216157]
[1741351955251,35.94141077,142.37,142.35,0.033]
[1741351955449,35.94141077,142.39,142.35,0.033]
[1741351956147,35.94141077,142.41,142.36,0.14216157]
[1741351956460,35.94141077,142.4,142.36,0.14216157]
[1741351956838,35.94141077,142.4,142.35,0.17516157]
[1741351957444,35.94141077,142.4,142.39,312.14216157]
[1741351957838,35.94141077,142.42,142.4,0.14216157]
[1741351958552,35.94141077,142.43,142.38,0.14216157]
[1741351960755,118.04141077,142.44,142.39,0.14216157]
[1741351960951,35.94141077,142.43,142.39,0.14216157]
[1741351961156,118.04141077,142.44,142.39,0.14216157]
[1741351961455,35.97141077,142.45,142.39,36.08357234]
[1741351962944,35.97141077,142.45,142.39,0.14216157]
[1741351963562,35.97141077,142.45,142.39,36.08357234]
[1741351964147,35.97141077,142.45,142.44,0.14216157]
[1741351964756,35.97141077,142.45,142.4,0.14216157]
[1741351964961,35.94141077,142.41,142.4,0.14216157]
[1741351965350,118.07141077,142.45,142.39,0.14216157]
[1741351965661,35.94141077,142.42,142.39,0.14216157]
[1741351965964,82.13,142.45,142.41,0.14216157]
[1741351966142,35.94141077,142.43,142.41,0.14216157]
[1741351966339,35.94141077,142.44,142.39,0.14216157]
[1741351966535,118.07141077,142.45,142.39,36.08357234]
[1741351967161,0.03,142.45,142.39,36.08357234]
[1741351967456,0.03,142.45,142.43,312.0]
[1741351967666,0.03,142.45,142.44,0.14216157]
[1741351968134,0.03,142.45,142.4,35.94141077]
[1741351968336,0.03,142.45,142.41,0.14216157]
[1741351968640,35.94141077,142.42,142.41,0.14216157]
[1741351968839,35.94141077,142.42,142.38,6.1469]
[1741351969039,35.94141077,142.41,142.38,6.1469]
[1741351969260,35.94141077,142.41,142.39,0.14216157]
[1741351970052,35.94141077,142.42,142.39,0.14216157]
[1741351971050,35.94141077,142.43,142.41,0.14216157]
[1741351971250,35.94141077,142.44,142.41,0.14216157]
[1741351972265,35.94141077,142.43,142.39,0.14216157]
[1741351972460,35.94141077,142.42,142.39,0.14216157]
[1741351973169,35.94141077,142.43,142.39,0.14216157]
[1741351974069,35.94141077,142.42,142.39,0.14216157]
[1741351974256,35.94141077,142.43,142.39,0.14216157]
[1741351974579,0.03,142.45,142.43,0.14216157]
[1741351975151,0.03,142.45,142.39,0.14216157]
[1741351975471,0.03,142.45,142.39,0.28432314]
[1741351975866,0.03,142.43,142.42,0.14216157]
[1741351976670,0.03,142.43,142.42,22.62936364]
[1741351977048,0.03,142.43,142.42,24.17206364]
[1741351977853,0.03,142.43,142.42,31.19346364]
[1741351978178,0.03,142.43,142.42,336.17206364]
[1741351979274,0.03,142.43,142.42,313.68486157]
[1741351979775,0.03,142.43,142.42,312.14216157]
[1741351979950,0.03,142.43,142.42,312.0]
[1741351980151,22.51720207,142.43,142.42,312.0]
[1741351980351,22.51720207,142.43,142.42,312.14216157]
[1741351980572,22.51720207,142.43,142.42,314.33078983]
[1741351980877,22.51720207,142.43,142.42,2.33078983]
[1741351981052,22.51720207,142.43,142.38,0.033]
[1741351981254,22.48720207,142.4,142.38,0.033]
[1741351981453,0.03,142.43,142.38,0.033]
[1741351981751,22.48720207,142.39,142.38,0.033]
[1741351982377,82.1,142.42,142.38,0.033]
[1741351982594,35.99581029,142.39,142.38,0.033]
[1741351983672,35.99581029,142.4,142.38,0.033]
[1741351983985,82.1,142.42,142.39,0.14216157]
[1741351984174,35.99581029,142.4,142.39,0.14216157]
[1741351986904,0.03,142.43,142.42,21.80366157]
[1741351987183,0.03,142.58,142.49,18.79181043]
[1741351987362,10.5184688,142.51,142.5,36.28013343]
[1741351987774,36.02581029,142.57,142.5,36.28013343]
[1741351987978,0.03,142.57,142.52,0.14216157]
[1741351988187,36.02581029,142.57,142.52,0.14216157]
[1741351988374,35.99581029,142.56,142.48,0.28432314]
[1741351988574,35.99581029,142.56,142.51,0.14216157]
[1741351988798,36.02581029,142.57,142.51,0.14216157]
[1741351988985,0.03,142.57,142.51,36.13797186]
[1741351989373,36.02581029,142.57,142.51,36.13797186]
[1741351989985,36.02581029,142.57,142.51,0.14216157]
[1741351990174,35.99581029,142.55,142.51,0.14216157]
[1741351990684,35.99581029,142.55,142.49,0.14216157]
[1741351990881,35.99581029,142.55,142.53,312.0]
[1741351991083,35.99581029,142.55,142.53,312.14216157]
[1741351992996,35.99581029,142.56,142.53,312.14216157]
[1741351993497,35.99581029,142.55,142.53,312.14216157]
[1741351994296,118.12581029,142.54,142.46,55.99581029]
[1741351994595,35.99581029,142.52,142.47,0.14216157]
[1741351994988,35.99581029,142.53,142.47,36.13797186]
[1741351995974,82.13,142.54,142.47,36.13797186]
[1741351995975,118.12581029,142.54,142.49,0.14216157]
[1741351996180,0.03,142.54,142.5,0.14216157]
[1741351996486,36.02581029,142.54,142.5,0.20371788]
[1741351996883,36.02581029,142.54,142.49,0.14216157]
[1741351997290,36.02581029,142.54,142.52,0.14216157]
[1741351997905,35.99581029,142.53,142.49,0.14216157]
[1741351998082,36.02581029,142.54,142.49,0.14216157]
[1741351998705,0.03,142.54,142.5,0.14216157]
[1741352000004,0.03,142.54,142.49,35.99581029]
[1741352000211,35.99581029,142.52,142.47,35.99581029]
[1741352000395,35.99581029,142.53,142.48,0.14216157]
[1741352000789,35.99581029,142.53,142.51,0.14216157]
[1741352001185,36.02581029,142.54,142.51,0.14216157]
[1741352001393,36.02581029,142.54,142.49,0.14216157]
[1741352001920,35.99581029,142.53,142.47,36.13797186]
[1741352002285,35.99581029,142.52,142.47,0.14216157]
[1741352002483,35.99581029,142.53,142.47,36.13797186]
[1741352004205,36.02581029,142.54,142.52,0.14216157]
[1741352004595,0.03,142.54,142.52,0.14216157]
[1741352004799,0.03,142.54,142.5,0.14216157]
[1741352006401,36.02581029,142.54,142.49,0.14216157]
[1741352006817,36.02581029,142.54,142.52,0.14216157]
[1741352007415,36.02581029,142.54,142.49,36.13797186]
[1741352007718,0.03,142.54,142.53,312.14216157]
[1741352008509,22.48082096,142.54,142.53,312.14216157]
[1741352014218,22.48082096,142.54,142.53,0.14216157]
[1741352014431,0.03,142.54,142.53,0.14216157]
[1741352014733,22.48082096,142.54,142.53,0.14216157]
[1741352015235,0.03,142.54,142.53,312.14216157]
[1741352016309,5.14166359,142.54,142.53,312.14216157]
[1741352017428,0.03,142.54,142.53,312.14216157]
[1741352021720,0.03,142.54,142.53,312.0]
[1741352022125,0.03,142.54,142.53,312.14216157]
[1741352023936,0.03,142.54,142.53,334.59298253]
[1741352024240,0.03,142.54,142.53,312.14216157]
[1741352029229,0.03,142.54,142.53,312.9627206]
[1741352030446,0.03,142.54,142.53,312.14216157]
[1741352031244,5.17026672,142.54,142.53,312.14216157]
[1741352032149,13.4118236,142.54,142.53,312.14216157]
[1741352032541,13.4118236,142.54,142.53,312.9627206]
[1741352033826,13.4118236,142.54,142.53,312.82055903]
[1741352034334,13.4118236,142.54,142.53,312.9627206]
[1741352035432,13.4118236,142.54,142.53,312.14216157]
[1741352036849,13.4118236,142.54,142.53,326.50660914]
[1741352037847,0.03,142.57,142.54,0.14216157]
[1741352038449,14.39444757,142.57,142.53,0.14216157]
[1741352039244,14.39444757,142.57,142.53,0.033]
[1741352039455,0.03,142.54,142.53,0.033]
[1741352041161,0.03,142.54,142.53,312.033]
[1741352041356,0.03,142.54,142.53,312.17516157]
[1741352043058,0.03,142.54,142.53,312.033]
[1741352043234,0.03,142.54,142.53,312.17516157]
[1741352045145,14.39444757,142.54,142.53,312.033]
[1741352045335,14.39444757,142.54,142.53,312.17516157]
[1741352045960,0.03,142.54,142.53,312.17516157]
[1741352053766,96.49444757,142.57,142.54,0.14216157]
[1741352054943,96.49444757,142.57,142.53,0.033]
[1741352054944,82.13,142.57,142.53,0.033]
[1741352055667,82.13,142.57,142.54,0.14216157]
[1741352056247,96.49444757,142.57,142.53,0.033]
[1741352056442,14.36444757,142.56,142.53,0.033]
[1741352056648,14.36444757,142.55,142.53,0.033]
[1741352056852,14.36444757,142.55,142.54,312.14216157]
[1741352057367,14.36444757,142.56,142.55,0.14216157]
[1741352058263,96.49444757,142.57,142.55,0.14216157]
[1741352058950,82.13,142.57,142.53,0.033]
[1741352059151,0.03,142.57,142.53,0.033]
[1741352060865,14.39444757,142.57,142.53,0.033]
[1741352061068,14.36444757,142.55,142.53,0.033]
[1741352061972,14.36444757,142.55,142.54,0.14216157]
[1741352062169,7.92867342,142.55,142.54,0.14216157]
[1741352062468,14.36444757,142.56,142.53,0.033]
[1741352063279,14.36444757,142.55,142.53,0.033]
[1741352063671,14.36444757,142.56,142.53,0.033]
[1741352064060,14.36444757,142.55,142.53,0.033]
[1741352065572,14.36444757,142.55,142.54,312.14216157]
[1741352068164,14.36444757,142.55,142.54,0.14216157]
[1741352069773,33.01409643,142.55,142.54,0.14216157]
[1741352071454,14.36444757,142.55,142.54,0.14216157]
[1741352074180,14.36444757,142.55,142.54,312.14216157]
[1741352077463,0.03,142.57,142.54,0.14216157]
[1741352078074,0.03,142.57,142.56,312.14216157]
[1741352079799,0.03,142.57,142.56,0.14216157]
[1741352081460,14.39444757,142.57,142.56,0.14216157]
[1741352082762,14.39444757,142.57,142.56,312.14216157]
[1741352083489,7.99484261,142.57,142.56,312.14216157]
[1741352083884,7.99484261,142.57,142.56,0.14216157]
[1741352084385,14.39444757,142.58,142.53,0.17516157]
[1741352085460,0.03,142.58,142.54,0.14216157]
[1741352085667,14.39444757,142.58,142.54,0.14216157]
[1741352085877,0.03,142.57,142.54,0.14216157]
[1741352086079,0.03,142.57,142.55,0.14216157]
[1741352086282,0.03,142.57,142.55,14.50660914]
[1741352086486,0.03,142.57,142.55,0.14216157]
[1741352086985,0.03,142.57,142.56,313.11399915]
[1741352087699,0.03,142.57,142.56,312.14216157]
[1741352098914,0.03,142.57,142.56,312.0]
[1741352099396,0.03,142.57,142.56,312.14216157]
[1741352100483,14.39444757,142.57,142.56,0.14216157]
[1741352101496,33.04409643,142.57,142.56,0.14216157]
[1741352101807,42.86923054,142.57,142.53,0.033]
[1741352102018,14.36444757,142.55,142.53,0.033]
[1741352102993,9.85513411,142.57,142.53,0.033]
[1741352103198,9.85513411,142.57,142.54,0.14216157]
[1741352103386,9.85513411,142.57,142.56,312.14216157]
[1741352104410,9.85513411,142.57,142.56,0.14216157]
[1741352105814,9.85513411,142.57,142.56,7.15666157]
[1741352106110,9.85513411,142.57,142.56,0.14216157]
[1741352106823,9.85513411,142.57,142.56,7.15666157]
[1741352107206,9.85513411,142.57,142.56,0.14216157]
[1741352107396,9.85513411,142.57,142.56,312.14216157]
[1741352109492,0.03,142.57,142.56,319.15666157]
[1741352109692,0.03,142.57,142.56,333.52110914]
[1741352110419,0.03,142.57,142.56,335.17387071]
[1741352112110,0.03,142.57,142.56,335.20687071]
[1741352113013,0.03,142.57,142.56,328.05020914]
[1741352113216,0.03,142.57,142.56,313.68576157]
[1741352113524,0.03,142.57,142.56,312.033]
[1741352114032,0.03,142.57,142.56,312.17516157]
[1741352114911,14.39444757,142.57,142.56,312.17516157]
[1741352115110,14.39444757,142.57,142.56,312.033]
[1741352115311,0.03,142.57,142.56,312.033]
[1741352115529,0.03,142.57,142.56,312.17516157]
[1741352116819,14.39444757,142.57,142.56,312.17516157]
[1741352117015,14.39444757,142.57,142.56,312.033]
[1741352117415,96.49444757,142.57,142.56,312.033]
[1741352117626,96.49444757,142.57,142.56,312.17516157]
[1741352117930,96.49444757,142.57,142.56,0.17516157]
[1741352120932,96.49444757,142.57,142.56,312.17516157]
[1741352121235,82.13,142.57,142.56,312.17516157]
[1741352121633,0.03,142.57,142.56,312.17516157]
[1741352122020,14.39444757,142.57,142.56,312.17516157]
[1741352123319,0.03,142.57,142.56,312.17516157]
[1741352124621,14.39444757,142.57,142.56,312.17516157]
[1741352125020,14.39444757,142.57,142.56,0.17516157]
[1741352125421,33.04409643,142.57,142.56,0.033]
[1741352126317,0.03,142.57,142.56,0.033]
[1741352126734,14.39444757,142.57,142.56,0.033]
[1741352127328,14.53660914,142.57,142.56,0.033]
[1741352128319,14.39444757,142.57,142.56,0.033]
[1741352131317,33.04409643,142.57,142.56,0.033]
[1741352131522,33.04409643,142.57,142.56,312.17516157]
[1741352132426,0.03,142.57,142.56,312.17516157]
[1741352133130,0.03,142.57,142.56,34.53960914]
[1741352133324,0.03,142.57,142.56,34.68177071]
[1741352133522,0.03,142.6,142.57,0.14216157]
[1741352133825,0.03,142.6,142.59,14.64877071]
[1741352134034,0.03,142.6,142.59,33.29841957]
[1741352134345,0.03,142.6,142.59,40.31151957]
[1741352135124,0.03,142.64,142.61,0.14216157]
[1741352135323,0.03,142.64,142.61,14.64877071]
[1741352136023,0.03,142.64,142.61,326.64877071]
[1741352136339,0.03,142.64,142.61,333.51870914]
[1741352136535,0.03,142.64,142.61,319.15426157]
[1741352136732,0.03,142.64,142.61,312.14216157]
[1741352137739,0.03,142.64,142.61,326.50660914]
[1741352138043,0.03,142.64,142.61,312.14216157]
[1741352138638,0.03,142.64,142.61,312.0]
[1741352138639,14.39444757,142.64,142.61,312.0]
[1741352138830,14.36444757,142.63,142.61,312.0]
[1741352139027,14.36444757,142.63,142.61,312.14216157]
[1741352139624,14.39444757,142.62,142.56,6.2197]
[1741352139826,96.46444757,142.61,142.56,20.58414757]
[1741352140151,82.1,142.61,142.59,0.14216157]
[1741352140455,0.03,142.62,142.59,21.51930914]
[1741352140662,0.03,142.62,142.59,22.55783708]
[1741352140846,0.03,142.62,142.59,0.14216157]
[1741352141146,0.03,142.62,142.61,42.55783708]
[1741352141335,0.03,142.62,142.61,20.14216157]
[1741352141921,0.03,142.62,142.61,42.69999865]
[1741352142323,9.06932696,142.64,142.62,0.28432314]
[1741352142528,9.06932696,142.64,142.63,41.20748594]
[1741352142752,0.03,142.64,142.63,353.20748594]
[1741352143460,0.03,142.65,142.64,0.14216157]
[1741352143627,0.03,142.68,142.67,28.96869865]
[1741352144030,0.03,142.68,142.67,51.19354751]
[1741352144326,0.03,142.68,142.67,49.19354751]
[1741352144565,0.03,142.68,142.67,56.20264751]
[1741352144927,0.03,142.68,142.67,37.55299865]
[1741352145131,0.03,142.68,142.67,30.40173708]
[1741352145342,0.03,142.68,142.67,7.98606157]
[1741352145935,0.03,142.68,142.67,30.25957551]
[1741352146130,0.03,142.68,142.67,30.40173708]
[1741352146628,0.03,142.68,142.67,342.54389865]
[1741352146835,0.03,142.68,142.67,361.19354751]
[1741352147660,0.03,142.68,142.67,368.20264751]
[1741352148330,0.03,142.69,142.68,20.933972]
[1741352148534,0.03,142.71,142.7,20.933972]
[1741352148733,9.70069798,142.82,142.75,20.14216157]
[1741352148957,32.11637349,142.82,142.76,42.41567551]
[1741352149140,9.70069798,142.82,142.8,20.0]
[1741352149457,9.70069798,142.82,142.81,42.55783708]
[1741352150151,9.70069798,142.82,142.81,0.14216157]
[1741352150370,9.70069798,142.82,142.81,22.55783708]
[1741352150653,9.70069798,142.82,142.81,42.69999865]
[1741352151255,9.70069798,142.82,142.81,41.34964751]
[1741352151553,9.97776289,143.01,142.95,20.0]
[1741352151771,9.97776289,143.01,143.0,22.55783708]
[1741352152755,64.70949984,143.05,143.01,0.14216157]
[1741352153344,24.35305531,143.04,143.0,0.14216157]
[1741352153552,22.41567551,143.03,143.0,0.14216157]
[1741352153855,22.41567551,143.03,142.98,0.14216157]
[1741352154243,1.9373798,143.04,142.98,22.55783708]
[1741352154650,1.9373798,143.04,142.99,0.14216157]
[1741352155046,1.9373798,143.04,143.02,0.14216157]
[1741352155251,37.60365041,143.04,143.02,0.14216157]
[1741352155453,3.5302631,143.04,142.99,0.14216157]
[1741352155762,35.66627061,143.04,142.99,0.14216157]
[1741352156142,82.1,143.06,142.99,0.14216157]
[1741352156563,35.66627061,143.04,142.99,0.14216157]
[1741352157075,82.1,143.06,142.99,0.14216157]
[1741352157245,35.66627061,143.04,142.99,0.14216157]
[1741352158066,82.1,143.05,142.98,0.14216157]
[1741352158067,35.66627061,143.03,142.98,0.14216157]
[1741352158565,35.66627061,143.03,143.0,0.14216157]
[1741352158870,35.66627061,143.02,143.0,0.14216157]
[1741352159068,35.66627061,143.01,142.97,0.14216157]
[1741352159647,35.66627061,143.01,142.96,0.14216157]
[1741352160263,35.66627061,143.01,142.93,18.86289121]
[1741352160462,35.66627061,142.97,142.93,0.21324235]
[1741352160758,35.66627061,142.97,142.86,70.73965095]
[1741352160759,71.33254122,142.94,142.86,11.02315405]
[1741352160949,35.66627061,142.89,142.86,11.02315405]
[1741352161145,35.66627061,142.89,142.85,0.14216157]
[1741352161567,35.66627061,142.89,142.84,11.02315405]
[1741352161771,35.66627061,142.9,142.86,0.14216157]
[1741352161944,35.66627061,142.9,142.89,0.14216157]
[1741352162141,35.66627061,142.91,142.88,312.0]
[1741352162341,35.66627061,142.91,142.86,0.14216157]
[1741352162545,35.66627061,142.9,142.86,0.14216157]
[1741352162962,35.66627061,142.89,142.83,54.31591947]
[1741352163146,82.1,142.94,142.87,0.14216157]
[1741352163352,35.66627061,142.92,142.87,0.14216157]
[1741352163749,35.66627061,142.91,142.85,35.66627061]
[1741352164071,35.66627061,142.89,142.85,0.14216157]
[1741352164454,35.66627061,142.9,142.85,0.28432314]
[1741352164764,35.66627061,142.89,142.86,20.0]
[1741352165162,35.66627061,142.9,142.86,20.0]
[1741352165363,35.66627061,142.9,142.88,312.0]
[1741352165565,35.66627061,142.9,142.89,0.14216157]
[1741352166267,35.66627061,142.9,142.83,35.66627061]
[1741352166472,35.66627061,142.86,142.82,6.259]
[1741352166652,82.1,142.9,142.82,6.259]
[1741352166857,35.66627061,142.88,142.82,41.92527061]
[1741352167049,35.66627061,142.86,142.82,6.259]
[1741352167454,35.66627061,142.86,142.83,0.14216157]
[1741352167852,35.66627061,142.84,142.8,0.21324235]
[1741352168056,35.66627061,142.83,142.8,0.21324235]
[1741352168369,35.66627061,142.83,142.81,0.14216157]
[1741352168575,35.66627061,142.87,142.8,0.21324235]
[1741352168576,35.66627061,142.82,142.8,0.21324235]
[1741352168778,35.66627061,142.82,142.81,312.14216157]
[1741352168973,35.66627061,142.82,142.81,312.0]
[1741352169154,35.66627061,142.83,142.81,312.0]
[1741352169965,35.66627061,142.85,142.82,0.14216157]
[1741352170167,90.10228482,142.86,142.82,0.14216157]
[1741352170464,90.10228482,142.86,142.81,0.14216157]
[1741352171779,54.43601421,142.9,142.81,42.81063218]
[1741352171960,35.66627061,142.87,142.81,42.81063218]
[1741352172160,35.66627061,142.88,142.83,0.14216157]
[1741352172364,35.66627061,142.86,142.83,0.14216157]
[1741352172656,35.66627061,142.85,142.83,0.14216157]
[1741352172880,35.66627061,142.85,142.81,0.17516157]
[1741352173189,54.43601421,142.89,142.85,0.14216157]
[1741352173358,54.43601421,142.88,142.85,0.14216157]
[1741352173560,35.66627061,142.86,142.85,0.14216157]
[1741352173762,35.66627061,142.86,142.81,0.033]
[1741352173763,35.66627061,142.86,142.81,0.17516157]
[1741352174063,54.43601421,142.88,142.81,7.17746157]
[1741352174264,35.66627061,142.87,142.81,35.84143218]
[1741352174464,90.10228482,142.88,142.83,0.14216157]
[1741352174871,35.66627061,142.87,142.83,0.14216157]
[1741352175561,54.43601421,142.88,142.82,0.14216157]
[1741352175767,35.66627061,142.88,142.82,35.95059375]
[1741352175967,54.43601421,142.93,142.85,35.80843218]
[1741352176167,35.66627061,142.9,142.85,35.80843218]
[1741352176568,35.66627061,142.9,142.89,312.14216157]
[1741352177262,54.43601421,142.92,142.9,0.14216157]
[1741352177263,90.10228482,142.92,142.9,0.14216157]
[1741352177582,35.66627061,142.93,142.9,0.14216157]
[1741352177790,35.66627061,142.93,142.88,0.14216157]
[1741352178099,54.43601421,142.94,142.88,0.14216157]
[1741352178100,35.66627061,142.91,142.88,0.14216157]
[1741352178266,35.66627061,142.92,142.87,0.14216157]
[1741352178996,54.43601421,142.94,142.87,35.80843218]
[1741352179296,35.66627061,142.93,142.89,0.14216157]
[1741352179655,35.66627061,142.92,142.88,0.14216157]
[1741352180069,35.66627061,142.91,142.88,0.14216157]
[1741352180364,35.66627061,142.91,142.87,0.14216157]
[1741352180663,54.43601421,142.94,142.9,0.14216157]
[1741352180664,90.10228482,142.94,142.9,0.14216157]
[1741352180864,54.43601421,142.93,142.9,0.14216157]
[1741352181084,35.66627061,142.91,142.86,0.14216157]
[1741352182281,54.43601421,142.93,142.88,0.14216157]
[1741352182282,90.10228482,142.93,142.88,0.14216157]
[1741352182479,35.66627061,142.9,142.88,0.14216157]
[1741352182680,35.66627061,142.89,142.87,0.14216157]
[1741352182987,35.66627061,142.88,142.82,6.4849]
[1741352183173,35.66627061,142.88,142.83,0.14216157]
[1741352184264,35.66627061,142.89,142.87,312.0]
[1741352184469,35.66627061,142.88,142.87,312.0]
[1741352185073,35.66627061,142.88,142.87,312.14216157]
[1741352185590,35.66627061,142.89,142.88,0.14216157]
[1741352185782,35.66627061,142.89,142.85,0.14216157]
[1741352185983,35.66627061,142.88,142.85,0.14216157]
[1741352186180,35.66627061,142.87,142.82,42.15117061]
[1741352186371,35.66627061,142.87,142.82,13.4865]
[1741352186574,35.66627061,142.87,142.83,0.17516157]
[1741352186777,54.46601421,142.89,142.83,42.84263218]
[1741352186985,35.66627061,142.88,142.83,7.17636157]
[1741352187480,35.66627061,142.88,142.83,0.17516157]
[1741352187884,35.66627061,142.88,142.83,7.17626157]
[1741352188283,90.13228482,142.89,142.83,42.84253218]
[1741352188485,54.46601421,142.89,142.84,35.95059375]
[1741352188688,54.46601421,142.89,142.88,312.14216157]
[1741352188890,0.03,142.89,142.88,312.14216157]
[1741352189076,0.03,142.89,142.88,319.14096157]
[1741352189279,0.03,142.89,142.88,312.14216157]
[1741352190000,35.69627061,142.89,142.88,312.14216157]
[1741352191172,35.69627061,142.89,142.88,0.14216157]
[1741352191388,35.69627061,142.89,142.83,0.033]
[1741352191694,0.03,142.89,142.83,35.98359375]
[1741352191877,0.03,142.89,142.85,0.14216157]
[1741352192074,35.66627061,142.88,142.85,0.14216157]
[1741352192277,35.66627061,142.87,142.83,0.033]
[1741352192697,35.66627061,142.86,142.83,0.033]
[1741352192903,35.66627061,142.86,142.83,0.17516157]
[1741352193086,35.66627061,142.84,142.83,0.033]
[1741352193476,54.43601421,142.88,142.83,0.033]
[1741352193477,35.66627061,142.85,142.83,0.033]
[1741352193677,35.66627061,142.86,142.84,0.14216157]
[1741352194085,35.66627061,142.87,142.84,0.14216157]
[1741352194290,35.66627061,142.87,142.86,0.14216157]
[1741352195001,0.03,142.89,142.84,35.95059375]
[1741352195196,0.03,142.89,142.86,0.14216157]
[1741352195606,35.69627061,142.89,142.86,0.14216157]
[1741352195787,35.66627061,142.88,142.84,0.14216157]
[1741352196288,35.66627061,142.86,142.83,0.033]
[1741352196491,35.66627061,142.85,142.83,0.17516157]
[1741352196692,35.66627061,142.85,142.83,0.033]
[1741352197605,35.66627061,142.85,142.83,0.17516157]
[1741352197801,35.66627061,142.86,142.85,0.14216157]
[1741352197981,35.66627061,142.86,142.84,312.0]
[1741352198183,35.66627061,142.85,142.84,312.14216157]
[1741352200108,35.66627061,142.87,142.85,0.14216157]
[1741352200995,35.66627061,142.86,142.83,0.17516157]
[1741352201687,35.66627061,142.86,142.83,0.033]
[1741352201888,35.66627061,142.87,142.83,0.033]
[1741352202099,54.43601421,142.88,142.83,0.033]
[1741352202290,35.66627061,142.87,142.83,0.033]
[1741352202708,35.66627061,142.86,142.83,0.033]
[1741352203089,35.66627061,142.85,142.83,0.033]
[1741352203286,35.66627061,142.86,142.85,0.14216157]
[1741352203787,35.66627061,142.86,142.83,0.17516157]
[1741352204632,35.66627061,142.86,142.83,0.033]
[1741352205913,54.43601421,142.88,142.83,0.033]
[1741352206121,35.66627061,142.86,142.83,0.033]
[1741352206499,35.69627061,142.89,142.83,0.17516157]
[1741352206890,35.69627061,142.89,142.88,0.14216157]
[1741352207321,35.69627061,142.89,142.84,0.14216157]
[1741352207901,35.66627061,142.88,142.84,0.14216157]
[1741352208108,35.66627061,142.86,142.84,0.14216157]
[1741352208489,35.66627061,142.86,142.83,0.17516157]
[1741352209004,35.66627061,142.87,142.83,0.033]
[1741352209647,35.66627061,142.87,142.83,0.17516157]
[1741352210309,35.69627061,142.89,142.87,0.14216157]
[1741352210616,22.36911669,142.89,142.87,0.14216157]
[1741352210790,22.36911669,142.89,142.84,0.28432314]
[1741352210988,22.33911669,142.88,142.84,0.28432314]
[1741352211192,22.33911669,142.88,142.84,0.14216157]
[1741352211394,0.03,142.89,142.83,0.17516157]
[1741352211395,22.33911669,142.86,142.83,0.17516157]
[1741352211602,22.33911669,142.86,142.83,0.033]
[1741352211799,22.33911669,142.85,142.83,0.033]
[1741352212201,22.33911669,142.86,142.83,0.033]
[1741352213393,76.7751309,142.88,142.83,0.17516157]
[1741352213814,76.7751309,142.88,142.87,0.14216157]
[1741352214004,22.33911669,142.88,142.87,0.14216157]
[1741352214321,22.33911669,142.88,142.84,0.14216157]
[1741352216295,0.03,142.89,142.83,0.17516157]
[1741352216499,22.33911669,142.85,142.83,0.17516157]
[1741352217426,22.33911669,142.85,142.84,312.14216157]
[1741352217806,22.33911669,142.85,142.84,312.0]
[1741352218007,22.33911669,142.85,142.83,0.033]
[1741352218209,18.64964886,142.83,142.81,0.033]
[1741352218408,22.33911669,142.82,142.81,0.033]
[1741352218600,35.79584723,142.82,142.81,0.033]
[1741352221003,35.79584723,142.82,142.81,312.17516157]
[1741352222411,117.89584723,142.84,142.82,0.14216157]
[1741352222923,117.89584723,142.84,142.81,0.033]
[1741352224651,117.89584723,142.84,142.81,0.17516157]
[1741352224833,82.1,142.88,142.81,35.9710088]
[1741352225233,35.79584723,142.86,142.81,0.17516157]
[1741352225422,35.79584723,142.85,142.81,0.17516157]
[1741352225929,35.79584723,142.84,142.81,0.17516157]
[1741352226135,35.79584723,142.82,142.81,0.033]
[1741352227217,35.79584723,142.83,142.81,0.033]
[1741352227416,35.79584723,142.82,142.81,0.033]
[1741352228415,35.79584723,142.83,142.82,0.14216157]
[1741352229023,0.03,142.84,142.81,0.033]
[1741352229629,0.03,142.84,142.82,0.14216157]
[1741352229930,0.03,142.84,142.83,0.28432314]